Cogmind - Beta 14 @@@ ROGUE MODE // 2024.10.20 @ 09:02:33 Player: Sandwich Result: Destroyed by S-10 Pest with Light Assault Rifle Performance ------------- Evolutions (2) 1000 Regions Visited (7) 1400 Robots Destroyed (45) 225 Value Destroyed (1243) 1243 Prototype IDs (25) 500 Alien Tech Used (0) 0 Bonus (691) 691 TOTAL SCORE: 5059 Bonus ------- High Alert Combat Kills 26 Follower Combat Kills 165 Entered Garrisons 200 Aligned with FarCom 300 Cogmind --------- Core Integrity 0/550 Matter 140/300 Energy 100/100 System Corruption 6% Temperature Cool (0) Movement Core (750) Ox14 Location -8/Garrison Parts ------- > --- POWER (2) -------- (None) > --- PROPULSION (3) --- (None) > --- UTILITY (4) ------ High-capacity Storage Unit > --- WEAPON (2) ------- Heavy Assault Rifle > --- INVENTORY (20) --- Improved Heat Sink Large Storage Unit Compact Matter Pod (150) Compact Matter Pod (150) Relay Coupler [Hunter] (22) Peak State ------------ > --- POWER ------------ Improved Ion Engine > --- PROPULSION ------- Improved Treads Improved Treads Advanced Treads > --- UTILITY ---------- Improved Heat Sink High-capacity Storage Unit Core Shielding > --- WEAPON ----------- Beam Rifle Field Lobotomy Kit > --- INVENTORY -------- Aluminum Leg Aluminum Leg Large Storage Unit Compact Matter Pod Compact Matter Pod Tractor Beam Light Assault Rifle Grenade Launcher Grenade Launcher Rocket Launcher Hammer Flail Flail [Rating: 28] Favorites ----------- Power Light Ion Engine Engine Light Ion Engine Power Core Light Nuclear Core Propulsion Improved Treads Treads Improved Treads Leg Aluminum Leg Wheel Wheel Hover Unit Gravmag System Utility High-capacity Storage Unit Device Shield Generator Storage High-capacity Storage Unit Protection Core Shielding Weapon Beam Rifle Energy Gun Beam Rifle Ballistic Gun Light Assault Rifle Launcher Grenade Launcher Special Weapon Field Lobotomy Kit Impact Weapon Flail Build | -11 -10 -9 -9 -9 -8 -8 -8 ------- Run | Yrd Mat Mat Min Exi Min Mat Gar Slots Evolved 4 | . . 2 . . . 2 . Power 1 | . . 1 . . . . . Propulsion 1 | . . . . . . 1 . Utility 2 | . . 1 . . . 1 . Weapon . | . . . . . . . . Parts Attached 59 | 6 9 8 1 1 6 5 23 Power 7 | 1 . 2 . . 2 . 2 Engine 6 | 1 . 2 . . 1 . 2 Core 1 | . . . . . 1 . . Reactor . | . . . . . . . . Propulsion 15 | 2 2 1 1 . 1 1 7 Treads 6 | . 2 1 1 . 1 1 . Leg 6 | . . . . . . . 6 Wheel 2 | 2 . . . . . . . Hover 1 | . . . . . . . 1 Flight . | . . . . . . . . Utility 15 | 1 5 3 . . 2 1 3 Device 8 | . 4 2 . . 1 . 1 Storage 5 | 1 1 1 . . . 1 1 Processor . | . . . . . . . . Hackware . | . . . . . . . . Protection 2 | . . . . . 1 . 1 Artifact . | . . . . . . . . Weapon 22 | 2 2 2 . 1 1 3 11 Energy Gun 7 | . 2 2 . . . 1 2 Energy Cannon . | . . . . . . . . Ballistic Gun 7 | 2 . . . . 1 . 4 Ballistic Cannon . | . . . . . . . . Launcher 3 | . . . . . . . 3 Special Weapon 2 | . . . . 1 . . 1 Impact Weapon 3 | . . . . . . 2 1 Slashing Weapon . | . . . . . . . . Piercing Weapon . | . . . . . . . . Special Melee Weapon . | . . . . . . . . Unidentified Prototypes . | . . . . . . . . Parts Lost 23 | . . 1 . . 3 . 19 Power 5 | . . . . . 2 . 3 Propulsion 6 | . . . . . . . 6 Utility 5 | . . 1 . . 1 . 3 Weapon 7 | . . . . . . . 7 Highest Loss Streak 7 | . . 1 . . 3 . 7 To Critical Strikes . | . . . . . . . . Average Slot Usage (%) 88 | . 99 97 100 100 89 81 61 Engine 14 | . 14 22 22 22 9 9 6 Treads 18 | . 21 22 22 22 22 27 5 Leg 2 | . . . . . . . 12 Device 15 | . 13 19 22 22 17 9 4 Storage 10 | . 14 11 11 11 11 9 9 Protection 2 | . . . . . 4 9 5 Energy Gun 14 | . 21 22 22 19 11 9 4 Ballistic Gun 4 | . 7 . . . 6 3 8 Special Weapon 1 | . . . . 2 5 . . Peak Build Rating 28 | 6 13 15 15 23 26 20 28 Average Rating 16 | 4 11 14 15 16 20 19 14 On Entrance 13 | . 6 13 15 15 23 17 20 Naked Turns . | . . . . . . . . Heaviest Build 63 | 12 33 55 55 60 62 54 63 Greatest Support 68 | 20 46 46 46 46 46 68 68 Greatest Overweight (x) 15 | 2 1 1 1 1 1 . 15 Average Overweight (x) . | . . . 1 1 1 . 1 Largest Inventory Capacity 20 | 8 15 20 20 20 20 20 20 Average Capacity 18 | 6 13 16 20 20 20 20 20 Most Carried 15 | 3 15 14 11 10 13 14 13 Average Carried 10 | 1 11 11 9 9 10 12 9 Final Capacity 20 | 8 15 20 20 20 20 20 20 Final Carried 15 | 3 15 11 9 10 12 13 5 Class Distribution -------------------- 94% | Mutant 5% | Scavenger-Mutant Dominant Class ---------------- Mutant | -10/Materials Mutant | -9/Materials Mutant | -9/Mines Mutant | -9/Exiles Mutant | -8/Mines Mutant | -8/Materials Mutant | -8/Garrison Resources | -11 -10 -9 -9 -9 -8 -8 -8 ----------- Run | Yrd Mat Mat Min Exi Min Mat Gar Matter Collected 1125 | 260 174 85 173 . 70 . 363 Remotely 282 | . 174 . . . . . 108 Salvage Created 1249 | . 249 297 101 . 8 . 594 Parts 82 | . 20 19 2 . . . 41 Haulers Intercepted . | . . . . . . . . Recyclers Shooed . | . . . . . . . . Parts Field Recycled . | . . . . . . . . Retrieved Matter . | . . . . . . . . Parts Self-Destructed . | . . . . . . . . Prevented . | . . . . . . . . Kills | -11 -10 -9 -9 -9 -8 -8 -8 ------- Run | Yrd Mat Mat Min Exi Min Mat Gar Combat Hostiles Destroyed 42 | . 11 8 2 . 1 . 20 Melee 1 | . . . . . . . 1 Guns 32 | . 10 8 1 . 1 . 12 AOE 5 | . . . . . . . 5 Classes Destroyed 5 | . 3 1 . . . . 1 Watcher 3 | . 2 1 . . . . . Swarmer 20 | . 9 3 . . 1 . 7 Grunt 14 | . 2 3 2 . . . 7 Sentry 5 | . . 2 . . . . 3 Programmer 3 | . . . . . . . 3 Best Kill Streak 4 | . 4 3 2 . 1 . 4 Combat Bots Only 4 | . 3 3 2 . 1 . 4 Max Kills in Single Turn 2 | . 2 1 1 . 1 . 2 Gunslinging 1 | . 1 . . . . . . Exploded 2 | . . . . . . . 2 Melee 1 | . . . . . . . 1 Uniques/NPCs Destroyed . | . . . . . . . . Combat | -11 -10 -9 -9 -9 -8 -8 -8 -------- Run | Yrd Mat Mat Min Exi Min Mat Gar Hostile Shots Fired 399 | . 70 57 12 . 52 . 208 Missed 119 | . 23 17 5 . 18 . 56 Damage Taken 3190 | . 357 363 72 . 277 . 2121 Core 698 | . 70 63 . . 15 . 550 Absorbed by Shields 242 | . 31 72 27 . 112 . . Redirected to Shielding 26 | . . . . . . . 26 Core Remaining (%) 84 | 100 72 . . . 80 . . Volleys Fired 128 | . 30 22 6 . 8 . 62 Largest 2 | . 2 2 2 . 1 . 2 Hottest 112 | . 112 112 112 . 56 . 89 Shots Fired 226 | . 60 44 12 . 8 . 102 Gun 209 | . 60 44 12 . 4 . 89 Cannon . | . . . . . . . . Launcher 12 | . . . . . . . 12 Special 5 | . . . . . 4 . 1 Kinetic 84 | . 14 . . . . . 70 Thermal 121 | . 46 44 12 . 4 . 15 Explosive 12 | . . . . . . . 12 Electromagnetic 4 | . . . . . . . 4 Robot Hit Streak 19 | . 8 7 17 . 19 . 17 Robot Miss Streak 6 | . 6 3 . . 3 . 4 Penetration Max . | . . . . . . . . Secondary Targets 8 | . 2 2 1 . . . 3 Max Gunslinging Chain 1 | . 1 1 1 . . . 1 Shots Hit Robots 139 | . 28 26 10 . 5 . 70 Core Hits 61 | . 15 12 2 . 1 . 31 Critical Kills 1 | . . . . . . . 1 Critical Parts Destroyed 2 | . . . . . . . 2 Critical Strikes 9 | . 2 2 . . . . 5 Burn 6 | . 2 2 . . . . 2 Destroy 1 | . . . . . . . 1 Smash 2 | . . . . . . . 2 Melee Attacks 15 | . . . . . . . 15 Impact 15 | . . . . . . . 15 Slashing . | . . . . . . . . Piercing . | . . . . . . . . Sneak Attacks . | . . . . . . . . Combat Hostiles . | . . . . . . . . Follow-up Attacks . | . . . . . . . . Damage Inflicted 2531 | . 348 376 148 . 15 . 1644 Guns 1717 | . 348 376 148 . 15 . 830 Cannons . | . . . . . . . . Explosions 434 | . . . . . . . 434 Melee 380 | . . . . . . . 380 Ramming . | . . . . . . . . Kinetic 716 | . 74 . . . . . 642 Thermal 1001 | . 274 376 148 . 15 . 188 Explosive 434 | . . . . . . . 434 Electromagnetic . | . . . . . . . . Impact 380 | . . . . . . . 380 Slashing . | . . . . . . . . Piercing . | . . . . . . . . Highest Corruption 6 | . . . . . . . 6 Average Corruption 5 | . . . . . . . 5 Corruption Purged . | . . . . . . . . Corruption Blocked . | . . . . . . . . Effects 14 | . . . . . . . 14 Message Errors 8 | . . . . . . . 8 Matter Fused 2 | . . . . . . . 2 Energy Discharges 2 | . . . . . . . 2 Data Loss (minor) 2 | . . . . . . . 2 Overload Shots . | . . . . . . . . Overflow Damage 67 | . . . . . . . 67 Projectiles . | . . . . . . . . Explosions 17 | . . . . . . . 17 Melee 50 | . . . . . . . 50 Knockbacks 5 | . . . . . . . 5 Impact 5 | . . . . . . . 5 Kinetic . | . . . . . . . . Secondary . | . . . . . . . . Self-Inflicted Damage 61 | . . . . . . . 61 Shots 2 | . . . . . . . 2 Rammed . | . . . . . . . . Targets Rammed . | . . . . . . . . Kicked . | . . . . . . . . Crushed . | . . . . . . . . Highest Temperature 319 | . 319 222 142 . . . 25 Average Temperature 65 | . 80 56 74 . . . 9 Received Heat Transfer 959 | . 36 123 40 . 85 . 675 Siege Activations . | . . . . . . . . Robots Corrupted 2 | . . . . . . . 2 Combat Hostiles 2 | . . . . . . . 2 Parts Fried . | . . . . . . . . Impact Corruptions 4 | . . . . . . . 4 Robots Melted 2 | . 1 . 1 . . . . Combat Hostiles 2 | . 1 . 1 . . . . Parts Melted 11 | . 2 6 2 . . . 1 Heat Transferred 2997 | . 851 1110 370 . 37 . 629 Parts Sabotaged . | . . . . . . . . Parts Stolen . | . . . . . . . . Parts Stripped . | . . . . . . . . Power Chain Reactions . | . . . . . . . . Alert | -11 -10 -9 -9 -9 -8 -8 -8 ------- Run | Yrd Mat Mat Min Exi Min Mat Gar Peak Influence 469 | . 209 276 87 . 53 . 469 Initial 37 | . . 33 37 . . . . Average 112 | . 90 143 77 . 22 . 238 Maximum Alert Level 2 | . 1 1 . . . . 2 Low Security (%) 73 | 100 95 74 100 . 100 100 19 Level 1 23 | . 4 25 . . . . 70 Level 2 2 | . . . . . . . 10 Level 3 . | . . . . . . . . Level 4 . | . . . . . . . . Level 5 . | . . . . . . . . High Security . | . . . . . . . . Max Security . | . . . . . . . . Squads Dispatched 2 | . . 2 . . . . . Investigation . | . . . . . . . . Extermination . | . . . . . . . . Reinforcement 2 | . . 2 . . . . . Assault . | . . . . . . . . Garrison . | . . . . . . . . Intercept . | . . . . . . . . Searches Triggered . | . . . . . . . . Construction Impeded . | . . . . . . . . Haulers Reinforced . | . . . . . . . . Active Scanning Responses . | . . . . . . . . Cargo Convoy Interrupts . | . . . . . . . . Stealth | -11 -10 -9 -9 -9 -8 -8 -8 --------- Run | Yrd Mat Mat Min Exi Min Mat Gar Distress Signals 2 | . 1 1 . . . . . Communications Jammed . | . . . . . . . . Distress Signals . | . . . . . . . . Times Spotted 61 | . 15 12 2 . 8 . 24 Peak Tracking Total 11 | . 5 4 2 . 5 . 11 Tactical Retreats 2 | . . . . . . . 2 Traps | -11 -10 -9 -9 -9 -8 -8 -8 ------- Run | Yrd Mat Mat Min Exi Min Mat Gar Traps Triggered 2 | . . . . . . . 2 Indirectly . | . . . . . . . . Trap Hack Attempts . | . . . . . . . . Triggered . | . . . . . . . . Disarmed . | . . . . . . . . Reprogrammed . | . . . . . . . . Reused . | . . . . . . . . Traps Extracted . | . . . . . . . . Installed . | . . . . . . . . Triggered . | . . . . . . . . Machines | -11 -10 -9 -9 -9 -8 -8 -8 ---------- Run | Yrd Mat Mat Min Exi Min Mat Gar Machines Disabled 1 | . . . . . 1 . . Max in Single Turn 1 | . . . . . 1 . . Machines Repaired . | . . . . . . . . Machines Dismantled . | . . . . . . . . Machines Sabotaged . | . . . . . . . . Overloaded Fab Kills . | . . . . . . . . Hacking | -11 -10 -9 -9 -9 -8 -8 -8 --------- Run | Yrd Mat Mat Min Exi Min Mat Gar Machines Accessed 10 | . 2 4 . 1 . 1 2 Terminals 6 | . 1 3 . . . . 2 Fabricators . | . . . . . . . . Repair Stations 1 | . . 1 . . . . . Recycling Units 1 | . 1 . . . . . . Scanalyzers . | . . . . . . . . Garrison Access 1 | . . . . . . 1 . Total Hacks 20 | . 3 11 . 1 . 1 4 Successful 11 | . 2 5 . 1 . 1 2 Failed 9 | . 1 6 . . . . 2 Catastrophic 1 | . . . . . . . 1 Database Lockouts . | . . . . . . . . Manual 1 | . . . . 1 . . . Terminals 15 | . 2 9 . . . . 4 Fabricators . | . . . . . . . . Repair Stations 2 | . . 2 . . . . . Recycling Units 1 | . 1 . . . . . . Scanalyzers . | . . . . . . . . Garrison Access 1 | . . . . . . 1 . Terminal Hacks 8 | . 1 4 . 1 . . 2 Record 1 | . . 1 . . . . . Prototype ID Bank 1 | . . 1 . . . . . Emergency Access Points 1 | . . . . . . . 1 Locate Traps 1 | . 1 . . . . . . Zone Layout 2 | . . 2 . . . . . Garrison Registry 1 | . . . . . . . 1 Derelict Proto ID Bank 1 | . . . . 1 . . . Fabricator Hacks . | . . . . . . . . Repair Station Hacks 1 | . . 1 . . . . . Scan Component 1 | . . 1 . . . . . Recycling Unit Hacks 1 | . 1 . . . . . . Report Inventory 1 | . 1 . . . . . . Scanalyzer . | . . . . . . . . Garrison Access Hacks 1 | . . . . . . 1 . Unlock Access 1 | . . . . . . 1 . Unauthorized Hacks . | . . . . . . . . Terminals . | . . . . . . . . Fabricators . | . . . . . . . . Repair Stations . | . . . . . . . . Recycling Units . | . . . . . . . . Scanalyzers . | . . . . . . . . Garrison Access . | . . . . . . . . Data Cores Recovered . | . . . . . . . . Used . | . . . . . . . . Hacking Detections 6 | . 1 3 . . . . 2 Full Trace Events 1 | . . . . . . . 1 Feedback Events . | . . . . . . . . Feedback Blocked . | . . . . . . . . Robot Schematics Acquired . | . . . . . . . . Robots Built . | . . . . . . . . Authchips . | . . . . . . . . Time . | . . . . . . . . Total Robot Build Rating . | . . . . . . . . Part Schematics Acquired . | . . . . . . . . Parts Built . | . . . . . . . . Authchips . | . . . . . . . . Time . | . . . . . . . . Total Part Build Rating . | . . . . . . . . Parts Repaired . | . . . . . . . . Time . | . . . . . . . . Parts Recycled . | . . . . . . . . Recycled Matter . | . . . . . . . . Retrieved Matter . | . . . . . . . . Retrieved Components . | . . . . . . . . Parts Scanalyzed . | . . . . . . . . Part Schematics Acquired . | . . . . . . . . Parts Damaged . | . . . . . . . . Bothacking | -11 -10 -9 -9 -9 -8 -8 -8 ------------ Run | Yrd Mat Mat Min Exi Min Mat Gar Used RIF Installer . | . . . . . . . . Robots Hacked . | . . . . . . . . Non-combat . | . . . . . . . . Combat . | . . . . . . . . Robot Hacks Applied . | . . . . . . . . Relay Couplers Released . | . . . . . . . . Fabnet Peak Effective % . | . . . . . . . . Robots Rewired . | . . . . . . . . Allies Hacked . | . . . . . . . . Hacks Repelled . | . . . . . . . . Allies | -11 -10 -9 -9 -9 -8 -8 -8 -------- Run | Yrd Mat Mat Min Exi Min Mat Gar Total Allies 5 | . . . . . 4 . 1 Largest Group 2 | . . . . . 1 1 2 Highest-Rated Group 44 | . . . . . 29 29 44 Highest-Rated Ally 29 | . . . . . 29 29 29 Total Orders . | . . . . . . . . Ally Attacks 41 | . . . . . 24 . 17 Total Damage 456 | . . . . . 226 . 230 Kills 7 | . . . . . 4 . 3 Allies Corrupted . | . . . . . . . . Allies Melted 1 | . . . . . . . 1 Field Lobotomies 5 | . . . . . 4 . 1 Intel | -11 -10 -9 -9 -9 -8 -8 -8 ------- Run | Yrd Mat Mat Min Exi Min Mat Gar Robot Analysis Total . | . . . . . . . . Derelict Logs Recovered 1 | . . . 1 . . . . Drone Launches . | . . . . . . . . Drone Recoveries . | . . . . . . . . Exploration | -11 -10 -9 -9 -9 -8 -8 -8 ------------- Run | Yrd Mat Mat Min Exi Min Mat Gar Turns Passed 4762 | 56 520 548 312 1025 1212 65 1024 Spaces Moved 2029 | 51 291 249 121 427 494 36 360 Core 26 | 13 . . . . . . 13 Treads 1611 | . 189 249 121 427 494 36 95 Legs 252 | . . . . . . . 252 Wheels 140 | 38 102 . . . . . . Hover . | . . . . . . . . Flight . | . . . . . . . . Fastest Speed 50 | 50 80 160 240 240 232 155 155 Average Speed 206 | 86 133 183 240 240 232 155 214 Slowest Speed 800 | 150 160 240 240 240 240 155 800 Overloaded Moves . | . . . . . . . . Propulsion Burnouts . | . . . . . . . . Robots Hopped . | . . . . . . . . Cave-ins Triggered . | . . . . . . . . Exploration Rate (%) 38 | 5 44 24 34 72 74 5 46 Regions Visited 7 Branch Regions 3 Pre-discovered Areas . | . . . . . . . . Known Exits Taken 1 | . . . . . . 1 . Unknown Exits Taken 6 | 1 1 1 1 1 1 . . Scrap Searched 2 | . . . 1 . 1 . . Spaces Dug . | . . . . . . . . Terrain Destroyed 42 | . . . . . . . 42 Melee . | . . . . . . . . Projectile . | . . . . . . . . AOE 42 | . . . . . . . 42 Terrain Rammed . | . . . . . . . . Walls Destroyed . | . . . . . . . . Machines Disabled . | . . . . . . . . Actions | -11 -10 -9 -9 -9 -8 -8 -8 --------- Run | Yrd Mat Mat Min Exi Min Mat Gar Total 2363 | 59 364 297 133 428 545 45 492 Wait 53 | . 12 10 . . 26 . 5 Move 2021 | 50 290 248 120 426 493 36 358 Hop . | . . . . . . . . Pick Up 46 | 3 17 4 2 1 8 2 9 Fast Attach 11 | 6 1 . . . . . 4 Attach 24 | . 1 4 . . 2 3 14 Detach 5 | . 1 . . . . 2 2 Swap 24 | . 7 4 1 1 4 2 5 Drop 26 | . 5 5 4 . 4 . 8 Fire 128 | . 30 22 6 . 8 . 62 Melee 15 | . . . . . . . 15 Ram . | . . . . . . . . Kick . | . . . . . . . . Crush . | . . . . . . . . Escape Stasis 10 | . . . . . . . 10 Rewire . | . . . . . . . . Trap . | . . . . . . . . Miscellaneous . | . . . . . . . . Route ------- -11/Scrapyard -10/Materials -9/Materials -9/Mines (discovered 2 exits: *Mat / *Exi) -9/Exiles (discovered 2 exits: [*Min x2]) -8/Mines -8/Materials -8/Garrison (discovered 3 exits: [*Mat x3]) History --------- Turn | Location | Event 7 | -11/Scrapyard | Discovered new exit (range 16) 57 | -11/Scrapyard | Entered Materials 316 | -10/Materials | Build established: Mutant 450 | -10/Materials | Discovered new exit (range 14) 577 | -10/Materials | Entered another Materials area 577 | -9/Materials | Evolved 2 slots: Power x1, Utility x1 1067 | -9/Materials | Discovered new exit (range 18) 1125 | -9/Materials | Entered Mines 1321 | -9/Mines | Learned Materials garrison access intel 1359 | -9/Mines | Discovered new exit (range 13) 1425 | -9/Mines | Deemed a non-threat by the Exiles lab entrance 1425 | -9/Mines | Discovered new exit (range 5) 1437 | -9/Mines | Entered Exiles 1473 | -9/Exiles | Discovered new exit (range 15) 1543 | -9/Exiles | Met 8R-AWN 1603 | -9/Exiles | Met EX-HEX 1689 | -9/Exiles | Met EX-DEC 1819 | -9/Exiles | Discovered new exit (range 14) 1997 | -9/Exiles | Met EX-BIN 2035 | -9/Exiles | Aligned with FarCom system 2037 | -9/Exiles | Given EX-Vault access code 2210 | -9/Exiles | Opened EX-Vault 2225 | -9/Exiles | Found Field Lobotomy Kit 2280 | -9/Exiles | Warned to stay clear of 0b10 Research branches 2462 | -9/Exiles | Left Exiles lab with Field Lobotomy Kit 2462 | -9/Exiles | Entered Mines 2462 | -8/Mines | Assimilated G-50 Soldier with FLK Orb 2470 | -8/Mines | Assimilated G-47 Trooper with FLK Orb 2903 | -8/Mines | Assimilated G-47 Trooper with FLK Orb 2913 | -8/Mines | Assimilated G-50 Soldier with FLK Orb 2942 | -8/Mines | Lost 3 parts (2p1u) 3653 | -8/Mines | Discovered new exit (range 10) 3674 | -8/Mines | Entered Materials 3674 | -8/Materials | Accompanied by 1 ally 3674 | -8/Materials | Evolved 2 slots: Propulsion x1, Utility x1 3675 | -8/Materials | Loaded intel: 1 garrison access location 3739 | -8/Materials | Identified exit to Garrison 3739 | -8/Materials | Entered Garrison 3739 | -8/Garrison | Accompanied by 1 ally 3759 | -8/Garrison | Triggered checkpoint 3761 | -8/Garrison | Assimilated Y-45 Defender with FLK Orb 3837 | -8/Garrison | Triggered checkpoint 3989 | -8/Garrison | Lost 3 parts (3n) 4153 | -8/Garrison | Triggered checkpoint 4238 | -8/Garrison | Discovered new exit (range 8) 4255 | -8/Garrison | Attempted to access garrison exit controls, blocked by remote lockdown 4352 | -8/Garrison | Lost 7 parts (2p1n3u1w) 4515 | -8/Garrison | Triggered checkpoint 4530 | -8/Garrison | Discovered new exit (range 38) 4530 | -8/Garrison | Discovered new exit (range 63) 4530 | -8/Garrison | Discovered new exit (range 37) 4614 | -8/Garrison | Core integrity fell below 50% 4617 | -8/Garrison | Triggered checkpoint 4642 | -8/Garrison | Lost 4 parts (2n2w) 4672 | -8/Garrison | Core integrity fell below 20% 4706 | -8/Garrison | Lost 3 parts (3w) 4763 | -8/Garrison | Destroyed by S-10 Pest with Light Assault Rifle Last Messages --------------- 04671_ Critical hit (Burn: +37). 04675_ Rocket Launcher destroyed. 04675_ Destroyed Rocket Launcher. 04678_ The unstable cave ceiling collapses. 04680_ Y-45 Defender suffers critical hit (Burn). 04680_ Y-45 Defender destroyed. 04690_ System corrupted: Energy discharge (-32). 04697_ Acquired 35 matter. 04699_ The unstable cave ceiling collapses. 04708_ System corrupted: Matter fused (-5). 04717_ The unstable cave ceiling collapses. 04717_ Beam Rifle crushed. 04718_ The unstable cave ceiling collapses. 04742_ S-10 Pest suffers critical hit (Burn). 04742_ S-10 Pest destroyed. 04743_ W4CJ%FA6HGEMW59TNSG6U%FWZRJWRV%K 04745_ Beam Rifle destroyed. 04747_ S-10 Pest destroyed. 04750_ The unstable cave ceiling collapses. 04759_ LM/A>8DIZVJ G